bitfinex/quotes_SOLUSD_20250712
["timestamp","ask_amount","ask_price","bid_price","bid_amount"]
[1752310493966,0.03,162.35,162.34,62.53722574]
[1752310494135,0.03,162.35,162.34,151.57722574]
[1752310494540,0.03,162.35,162.34,141.57722574]
[1752310494740,0.03,162.35,162.34,151.57722574]
[1752310495170,0.03,162.35,162.34,141.57722574]
[1752310495348,0.03,162.35,162.34,151.57722574]
[1752310495869,0.03,162.35,162.34,141.57722574]
[1752310496072,0.03,162.35,162.34,188.56722574]
[1752310496256,0.03,162.35,162.34,178.56722574]
[1752310496566,0.03,162.35,162.34,188.56722574]
[1752310497071,0.03,162.35,162.34,207.04722574]
[1752310497670,0.03,162.35,162.34,197.04722574]
[1752310497973,0.03,162.35,162.34,207.04722574]
[1752310498154,0.03,162.35,162.34,356.44722574]
[1752310498554,0.03,162.35,162.34,207.04722574]
[1752310500357,0.03,162.35,162.34,197.04722574]
[1752310500655,0.03,162.35,162.34,207.04722574]
[1752310503568,0.1,162.36,162.35,105.79468397]
[1752310503771,0.1,162.36,162.35,140.83722574]
[1752310503972,0.1,162.36,162.35,141.50722574]
[1752310504651,0.03,162.38,162.36,16.78468397]
[1752310504970,0.03,162.38,162.36,201.89722574]
[1752310505869,0.03,162.38,162.36,283.90722574]
[1752310506171,0.03,162.38,162.37,89.48722574]
[1752310506374,0.03,162.38,162.37,238.88722574]
[1752310506568,0.03,162.38,162.37,248.88722574]
[1752310506951,0.03,162.38,162.37,267.36722574]
[1752310507277,0.1,162.39,162.38,16.78468397]
[1752310507573,0.1,162.39,162.38,52.49722574]
[1752310508560,0.1,162.41,162.4,50.42976751]
[1752310508760,0.1,162.41,162.4,81.62976751]
[1752310508954,0.1,162.41,162.4,82.29976751]
[1752310509875,0.1,162.44,162.4,82.29976751]
[1752310509876,0.1,162.44,162.43,16.78468397]
[1752310510074,0.1,162.44,162.43,140.73722574]
[1752310510459,0.77,162.44,162.43,145.52301638]
[1752310511054,0.77,162.44,162.43,140.73722574]
[1752310511275,0.77,162.44,162.43,145.62084722]
[1752310511472,0.77,162.44,162.43,140.73722574]
[1752310512675,0.77,162.44,162.43,105.69468397]
[1752310512876,0.77,162.44,162.43,139.95248842]
[1752310513375,0.77,162.44,162.43,51.04248842]
[1752310513563,9.0229,162.44,162.43,51.04248842]
[1752310514453,12.84544177,162.44,162.43,16.78468397]
[1752310514655,12.84544177,162.44,162.43,47.98468397]
[1752310514876,12.84544177,162.44,162.43,15.11808397]
[1752310515081,12.84544177,162.44,162.43,41.11808397]
[1752310516083,12.84544177,162.44,162.43,72.33808397]
[1752310516378,9.0229,162.44,162.43,72.33808397]
[1752310516680,12.84544177,162.44,162.43,72.33808397]
[1752310517582,9.0229,162.44,162.43,46.33808397]
[1752310519794,2.385,162.44,162.43,50.16062574]
[1752310519955,2.385,162.44,162.43,139.07062574]
[1752310520292,2.385,162.44,162.43,135.24808397]
[1752310520475,2.385,162.44,162.43,139.07062574]
[1752310523568,0.77,162.44,162.43,139.07062574]
[1752310524371,0.1,162.44,162.43,139.07062574]
[1752310524781,0.78,162.44,162.43,139.07062574]
[1752310525968,0.78,162.44,162.43,104.02808397]
[1752310526163,0.78,162.44,162.43,135.22808397]
[1752310538007,0.78,162.44,162.43,46.31808397]
[1752310541491,4.60254177,162.44,162.43,46.31808397]
[1752310541698,6.24494177,162.44,162.43,46.31808397]
[1752310542397,6.24494177,162.44,162.43,31.2]
[1752310542697,12.34334177,162.44,162.43,31.2]
[1752310542901,12.34334177,162.44,162.37,3.11061354]
[1752310542902,12.34334177,162.44,162.37,16.78468397]
[1752310543209,3.82254177,162.39,162.37,16.78468397]
[1752310543378,0.68,162.38,162.37,42.78468397]
[1752310544099,0.68,162.38,162.37,73.96468397]
[1752310548201,4.50254177,162.38,162.37,73.96468397]
[1752310548702,4.54254177,162.38,162.37,73.96468397]
[1752310555398,4.54254177,162.38,162.37,57.18]
[1752310556410,4.54254177,162.38,162.37,31.18]
[1752310563290,4.54254177,162.38,162.31,16.78468397]
[1752310563606,0.72,162.37,162.32,31.14]
[1752310564700,3.82254177,162.33,162.32,31.14]
[1752310564997,4.54254177,162.33,162.32,31.14]
[1752310573524,4.54254177,162.35,162.32,31.14]
[1752310574933,3.82254177,162.34,162.32,31.14]
[1752310575105,0.72,162.35,162.32,31.14]
[1752310575305,3.82254177,162.34,162.32,31.14]
[1752310576030,4.54254177,162.35,162.32,31.14]
[1752310576206,4.52254177,162.38,162.33,21.27722574]
[1752310576721,4.52254177,162.38,162.35,16.78468397]
[1752310576906,4.52254177,162.37,162.36,31.16]
[1752310579811,3.82254177,162.37,162.36,31.16]
[1752310582630,3.82254177,162.37,162.36,31.22]
[1752310582828,4.52254177,162.37,162.36,31.22]
[1752310585028,4.52254177,162.37,162.33,0.23]
[1752310585225,4.52254177,162.36,162.35,26.0]
[1752310586219,4.52254177,162.36,162.35,57.16]
[1752310586816,3.82254177,162.36,162.35,57.16]
[1752310588731,4.52254177,162.36,162.35,57.16]
[1752310588939,4.52254177,162.36,162.35,31.16]
[1752310594032,0.7,162.36,162.35,31.16]
[1752310594231,4.52254177,162.36,162.35,31.16]
[1752310606241,0.7,162.36,162.35,31.16]
[1752310606430,4.52254177,162.36,162.35,31.16]
[1752310606743,0.03,162.37,162.35,31.39]
[1752310608327,0.03,162.37,162.35,31.16]
[1752310608522,3.85254177,162.37,162.35,31.16]
[1752310608722,4.53254177,162.37,162.35,31.16]
[1752310608945,4.50254177,162.36,162.35,31.16]
[1752310609328,3.82254177,162.36,162.35,31.16]
[1752310611460,4.50254177,162.36,162.35,31.16]
[1752310616334,0.68,162.36,162.35,31.16]
[1752310616650,4.50254177,162.36,162.35,31.16]
[1752310627300,0.03,162.37,162.35,31.39]
[1752310627452,0.03,162.37,162.36,20.83722574]
[1752310627852,0.03,162.37,162.36,17.01468397]
[1752310628142,0.03,162.37,162.36,16.78468397]
[1752310628772,0.03,162.37,162.35,31.39]
[1752310628972,3.85254177,162.37,162.35,31.16]
[1752310629162,3.82254177,162.36,162.34,88.91]
[1752310629369,0.03,162.37,162.35,31.72]
[1752310629580,3.82254177,162.36,162.35,31.72]
[1752310632869,0.03,162.37,162.36,16.78468397]
[1752310633053,0.03,162.37,162.36,17.01468397]
[1752310634573,3.85254177,162.37,162.36,16.78468397]
[1752310634998,0.03,162.37,162.36,16.78468397]
[1752310637791,3.85254177,162.37,162.36,16.78468397]
[1752310637958,4.57254177,162.37,162.35,31.72]
[1752310638165,3.82254177,162.36,162.35,31.72]
[1752310638959,4.54254177,162.36,162.33,0.06]
[1752310639280,0.72,162.35,162.34,31.66]
[1752310639472,3.82254177,162.35,162.34,31.66]
[1752310641590,0.03,162.37,162.35,16.78468397]
[1752310641809,0.03,162.37,162.35,17.01468397]
[1752310643080,0.03,162.37,162.36,31.86]
[1752310649420,4.57254177,162.37,162.35,26.0]
[1752310649586,0.75,162.37,162.36,31.82]
[1752310649784,4.57254177,162.37,162.36,31.82]
[1752310652121,4.57254177,162.37,162.33,0.06]
[1752310652298,3.82254177,162.34,162.33,0.06]
[1752310652613,3.82254177,162.34,162.33,31.84]
[1752310652794,4.54254177,162.34,162.33,31.84]
[1752310657324,3.82254177,162.34,162.33,31.84]
[1752310657626,3.82254177,162.35,162.33,48.62468397]
[1752310657826,3.82254177,162.36,162.33,48.85468397]
[1752310658929,0.03,162.37,162.34,17.01468397]
[1752310659232,0.03,162.37,162.35,31.76]
[1752310659433,0.03,162.37,162.35,31.99]
[1752310660702,3.85254177,162.37,162.35,31.99]
[1752310661117,3.85254177,162.37,162.35,31.76]
[1752310661441,3.82254177,162.36,162.35,48.54468397]
[1752310667633,0.03,162.37,162.35,48.77468397]
[1752310667812,3.82254177,162.36,162.35,48.54468397]
[1752310668206,0.03,162.37,162.35,48.77468397]
[1752310668406,3.85254177,162.37,162.35,48.54468397]
[1752310669009,0.03,162.37,162.35,48.54468397]
[1752310669212,3.85254177,162.37,162.35,48.77468397]
[1752310670942,3.85254177,162.37,162.35,48.54468397]
[1752310671541,3.82254177,162.36,162.35,48.54468397]
[1752310671724,4.54254177,162.36,162.35,31.76]
[1752310678564,4.54254177,162.36,162.35,31.78]
[1752310678745,0.72,162.36,162.35,31.78]
[1752310679130,4.54254177,162.36,162.35,31.78]
[1752310683568,4.54254177,162.36,162.33,0.06]
[1752310683735,4.54254177,162.36,162.34,31.76]
[1752310683736,0.72,162.35,162.34,31.76]
[1752310683936,4.54254177,162.35,162.34,31.76]
[1752310686256,3.82254177,162.35,162.34,31.76]
[1752310686441,0.03,162.37,162.34,31.99]
[1752310686644,3.82254177,162.36,162.34,31.99]
[1752310687049,3.82254177,162.36,162.34,31.76]
[1752310687265,3.82254177,162.35,162.34,31.76]
[1752310692681,3.82254177,162.36,162.34,31.76]
[1752310693863,4.49254177,162.36,162.34,31.76]
[1752310694070,3.82254177,162.35,162.34,48.54468397]
[1752310694590,0.03,162.37,162.34,48.54468397]
[1752310694591,3.82254177,162.36,162.34,48.54468397]
[1752310695483,4.49254177,162.36,162.34,48.54468397]
[1752310695688,3.82254177,162.35,162.34,48.54468397]
[1752310698592,4.49254177,162.35,162.34,48.54468397]
[1752310699188,4.49254177,162.35,162.34,31.76]
[1752310699392,0.67,162.35,162.34,31.76]
[1752310699567,4.49254177,162.35,162.34,31.76]
[1752310702967,4.49254177,162.35,162.33,0.06]
[1752310703274,4.49254177,162.34,162.33,0.06]
[1752310703481,4.49254177,162.34,162.33,31.74]
[1752310705794,0.03,162.37,162.33,31.97]
[1752310705992,0.03,162.43,162.36,26.0]
[1752310706193,0.03,162.43,162.4,26.0]
[1752310706492,0.03,162.43,162.41,31.84]
[1752310706685,0.03,162.43,162.41,32.04]
[1752310706891,0.03,162.43,162.42,16.78468397]
[1752310707773,0.03,162.43,162.41,31.84]
[1752310707975,4.52254177,162.43,162.41,31.84]
[1752310708293,4.52254177,162.43,162.4,26.0]
[1752310708294,0.7,162.43,162.42,57.82]
[1752310708498,4.52254177,162.43,162.42,57.82]
[1752310708679,4.52254177,162.43,162.42,31.82]
[1752310710091,0.03,162.43,162.42,31.82]
[1752310711180,0.03,162.43,162.42,48.80468397]
[1752310712398,0.03,162.43,162.42,48.60468397]
[1752310713250,0.03,162.43,162.42,52.62722574]
[1752310713410,0.03,162.43,162.42,48.60468397]
[1752310717111,0.03,162.43,162.42,16.78468397]
[1752310717318,4.52254177,162.43,162.39,16.78468397]
[1752310717605,3.82254177,162.42,162.4,31.74]
[1752310717812,3.82254177,162.41,162.4,31.74]
[1752310719593,4.49254177,162.42,162.4,31.74]
[1752310720499,4.49254177,162.41,162.4,31.74]
[1752310720895,0.67,162.41,162.4,31.74]
[1752310721111,4.49254177,162.41,162.4,31.74]
[1752310723301,0.67,162.41,162.4,31.74]
[1752310723497,4.49254177,162.41,162.4,31.74]
[1752310723806,4.49254177,162.41,162.33,88.97]
[1752310723807,14.48878354,162.41,162.33,88.97]
[1752310724008,3.82254177,162.36,162.34,31.7]
[1752310724208,4.53254177,162.35,162.34,31.7]
[1752310727103,0.71,162.35,162.34,31.7]
[1752310727302,4.53254177,162.35,162.34,31.7]
[1752310735021,4.53254177,162.35,162.34,31.76]
[1752310748034,4.53254177,162.35,162.34,0.06]
[1752310748035,11.16674177,162.35,162.34,0.06]
[1752310748252,11.16674177,162.35,162.34,31.62]
[1752310751227,4.53254177,162.35,162.34,31.62]
[1752310751430,3.82254177,162.35,162.34,31.62]
[1752310752631,4.53254177,162.35,162.34,31.62]
[1752310758297,0.03,162.37,162.34,31.82]
[1752310758430,0.03,162.37,162.35,0.2]
[1752310759547,0.03,162.37,162.36,0.2]
[1752310763038,0.03,162.37,162.34,31.82]
[1752310763234,0.03,162.37,162.35,0.2]
[1752310768242,0.03,162.37,162.34,31.62]
[1752310768559,0.03,162.37,162.34,31.82]
[1752310769857,0.03,162.37,162.35,16.78468397]
[1752310770178,0.03,162.37,162.35,16.98468397]
[1752310772136,0.69,162.39,162.35,16.98468397]
[1752310772137,3.82254177,162.39,162.35,16.78468397]
[1752310772350,3.82254177,162.39,162.36,0.2]
[1752310772558,3.82254177,162.39,162.37,31.64]
[1752310773066,1.5637,162.42,162.38,16.78468397]
[1752310773243,4.54254177,162.43,162.38,20.80722574]
[1752310773443,3.85254177,162.43,162.39,0.2]
[1752310773766,3.85254177,162.43,162.38,20.60722574]
[1752310773767,3.85254177,162.43,162.4,31.84]
[1752310775465,3.82254177,162.42,162.4,31.64]
[1752310775665,4.51254177,162.42,162.4,31.64]
[1752310776336,4.51254177,162.41,162.38,26.0]
[1752310776539,4.51254177,162.41,162.39,31.64]
[1752310778859,4.51254177,162.41,162.38,26.0]
[1752310779166,3.82254177,162.4,162.39,31.62]
[1752310779543,4.51254177,162.4,162.39,31.62]
[1752310779744,3.82254177,162.4,162.39,31.62]
[1752310781161,4.51254177,162.4,162.39,31.62]
[1752310785370,3.82254177,162.4,162.39,31.62]
[1752310787267,4.51254177,162.41,162.39,31.62]
[1752310787471,3.82254177,162.42,162.39,31.82]
[1752310789476,0.03,162.43,162.4,16.98468397]
[1752310789656,0.03,162.43,162.41,31.54]
[1752310791776,0.03,162.43,162.41,31.74]
[1752310793373,0.03,162.43,162.42,16.98468397]
[1752310795075,0.03,162.43,162.42,46.80722574]
[1752310798164,0.03,162.43,162.42,42.78468397]
[1752310799257,4.54254177,162.43,162.41,120.45]
[1752310799478,4.51254177,162.42,162.41,31.54]
[1752310799859,0.69,162.42,162.41,31.54]
[1752310800565,3.85254177,162.43,162.41,31.74]
[1752310800789,3.85254177,162.43,162.41,31.54]
[1752310800968,4.51254177,162.42,162.41,31.54]
[1752310807772,4.51254177,162.42,162.37,0.06]
[1752310807971,3.82254177,162.39,162.38,31.44]
[1752310808680,3.82254177,162.4,162.38,31.44]
[1752310810095,4.51254177,162.4,162.38,31.44]
[1752310811089,4.51254177,162.39,162.38,31.44]
[1752310812085,3.82254177,162.39,162.38,31.44]
[1752310812281,0.69,162.41,162.38,31.44]
[1752310812482,3.82254177,162.39,162.38,31.44]
[1752310813394,4.51254177,162.4,162.38,31.44]
[1752310815479,3.82254177,162.4,162.38,31.44]
[1752310815778,4.48254177,162.4,162.38,31.44]
[1752310817400,0.66,162.4,162.38,31.44]
[1752310817599,4.48254177,162.4,162.38,31.44]
[1752310818699,0.66,162.39,162.38,31.44]
[1752310818895,4.48254177,162.39,162.38,31.44]
[1752310819497,3.82254177,162.4,162.38,31.44]
[1752310819683,4.48254177,162.4,162.38,31.44]
[1752310819888,1.6294,162.43,162.38,31.44]
[1752310819889,4.48254177,162.39,162.38,31.44]
[1752310820893,4.48254177,162.39,162.37,0.06]
[1752310821094,4.48254177,162.38,162.37,0.06]
[1752310821402,4.48254177,162.38,162.37,31.44]
[1752310823481,12.38124177,162.38,162.37,31.44]
[1752310823908,12.38124177,162.38,162.37,0.06]
[1752310827419,12.38124177,162.38,162.35,31.38]
[1752310827586,29.82254177,162.36,162.34,0.06]
[1752310827783,3.82254177,162.35,162.34,0.06]
[1752310827983,4.48254177,162.35,162.34,0.06]
[1752310828619,30.48254177,162.35,162.34,0.06]
[1752310829501,34.30508354,162.35,162.34,0.06]
[1752310829704,34.30508354,162.35,162.33,0.06]
[1752310829896,34.30508354,162.34,162.33,0.06]
[1752310831089,1.6197,162.32,162.28,26.6]
[1752310831287,3.82254177,162.29,162.28,31.46]
[1752310831500,4.48254177,162.29,162.28,31.46]
[1752310833113,30.48254177,162.29,162.28,31.46]
[1752310835714,30.48254177,162.29,162.28,0.06]
[1752310836986,3.82254177,162.29,162.28,0.06]
[1752310840029,3.82254177,162.32,162.28,0.26]
[1752310840340,3.82254177,162.32,162.29,31.6]
[1752310840742,3.82254177,162.32,162.3,0.2]
[1752310841540,3.82254177,162.32,162.29,31.6]
[1752310842313,3.82254177,162.33,162.3,0.2]
[1752310842624,3.82254177,162.33,162.31,0.2]
[1752310842940,3.82254177,162.34,162.32,0.2]
[1752310843229,0.03,162.34,162.33,31.6]
[1752310843433,3.85254177,162.34,162.33,31.4]
[1752310845810,4.57254177,162.34,162.33,31.4]
[1752310847031,3.85254177,162.34,162.33,31.4]
[1752310848117,4.57254177,162.34,162.33,31.4]
[1752310860337,0.03,162.34,162.33,31.4]
[1752310860538,3.85254177,162.34,162.33,31.4]
[1752310863847,4.57254177,162.34,162.33,31.4]
[1752310864456,3.85254177,162.34,162.33,31.4]
[1752310865457,4.57254177,162.34,162.33,31.46]
[1752310866554,0.03,162.34,162.33,31.66]
[1752310867845,0.03,162.34,162.33,31.46]
[1752310868028,3.85254177,162.34,162.33,31.46]
[1752310868649,0.03,162.34,162.33,31.46]
[1752310868853,3.85254177,162.34,162.33,31.46]
[1752310869446,4.57254177,162.34,162.33,31.46]
[1752310869832,0.75,162.34,162.33,31.46]
[1752310870036,4.57254177,162.34,162.33,31.46]
[1752310875152,4.57254177,162.34,162.33,0.06]
[1752310877046,36.04558354,162.34,162.33,0.06]
[1752310878149,6.419,162.33,162.28,31.44]
[1752310878345,3.82254177,162.29,162.28,31.44]
[1752310878548,4.50254177,162.29,162.28,31.44]
[1752310881154,0.68,162.29,162.28,31.44]
[1752310881353,4.50254177,162.29,162.28,31.44]
[1752310882458,30.50254177,162.29,162.28,0.06]
[1752310889372,30.50254177,162.29,162.26,0.2]
[1752310889568,29.82254177,162.27,162.26,0.2]
[1752310890075,30.50254177,162.27,162.26,0.2]
[1752310890374,4.50254177,162.27,162.26,0.2]
[1752310891076,30.50254177,162.27,162.26,0.2]
[1752310891581,4.50254177,162.27,162.26,0.2]
[1752310891781,30.50254177,162.27,162.26,0.2]
[1752310891952,4.50254177,162.27,162.26,0.2]
[1752310892571,26.0,162.25,162.2,26.76]
[1752310892857,4.50254177,162.24,162.21,31.4]
[1752310893165,0.68,162.23,162.21,31.4]
[1752310893366,0.68,162.22,162.21,31.4]
[1752310893972,4.50254177,162.22,162.21,31.4]
[1752310896974,4.50254177,162.22,162.2,0.2]
[1752310896975,30.50254177,162.22,162.2,0.2]
[1752310897162,4.50254177,162.21,162.2,0.2]
[1752310900276,4.50254177,162.21,162.17,31.6]
[1752310900486,3.82254177,162.18,162.17,31.6]
[1752310900663,4.50254177,162.18,162.17,31.6]
[1752310900865,30.50254177,162.18,162.17,31.6]
[1752310902582,4.50254177,162.18,162.17,31.6]
[1752310902788,4.50254177,162.18,162.17,0.2]
[1752310902789,8.32508354,162.18,162.17,0.2]
[1752310902975,4.50254177,162.18,162.17,0.2]
[1752310904662,3.82254177,162.18,162.17,0.4]
[1752310904863,0.7,162.21,162.17,0.4]
[1752310905070,3.82254177,162.18,162.17,0.4]
[1752310906575,3.82254177,162.18,162.17,0.2]
[1752310916884,4.52254177,162.18,162.17,0.2]
[1752310920101,30.52254177,162.18,162.17,0.2]
[1752310921503,4.52254177,162.18,162.17,0.2]
[1752310921675,3.82254177,162.18,162.17,0.2]
[1752310923100,0.7,162.22,162.17,0.4]
[1752310923306,3.82254177,162.2,162.17,0.4]
[1752310924599,26.7,162.24,162.18,0.2]
[1752310924800,3.82254177,162.21,162.19,31.4]
[1752310924999,3.82254177,162.21,162.19,31.6]
[1752310925302,3.82254177,162.21,162.19,31.4]
[1752310927876,3.82254177,162.2,162.19,31.4]
[1752310931790,4.52254177,162.2,162.19,31.4]
[1752310932187,4.52254177,162.2,162.17,0.2]
[1752310932387,3.82254177,162.18,162.17,0.2]
[1752310932801,4.52254177,162.18,162.17,0.2]
[1752310939899,30.52254177,162.18,162.17,0.2]
[1752310950322,3.82254177,162.18,162.17,0.2]
[1752310950802,30.50254177,162.18,162.17,0.2]
[1752310951536,4.50254177,162.18,162.17,0.2]
[1752310958149,8.32508354,162.18,162.17,0.2]
[1752310961738,4.50254177,162.18,162.17,0.2]
[1752310962208,8.32508354,162.18,162.17,0.2]
[1752310962932,8.32508354,162.18,162.16,0.2]
[1752310963139,7.64508354,162.17,162.16,0.2]
[1752310963348,8.32508354,162.17,162.16,0.2]
[1752310967835,4.50254177,162.17,162.16,0.2]
[1752310973454,27.6563,162.19,162.16,0.2]
[1752310973455,0.69,162.19,162.16,0.2]
[1752310973632,29.82254177,162.18,162.16,0.2]
[1752310973829,26.0,162.18,162.16,0.2]
[1752310974034,29.82254177,162.18,162.16,0.2]
[1752310974238,3.82254177,162.18,162.16,0.2]
[1752310974746,3.82254177,162.17,162.16,0.2]
[1752310975726,0.03,162.17,162.16,0.2]
[1752310976945,3.85254177,162.17,162.16,0.2]
[1752310977648,0.03,162.17,162.16,31.76]
[1752310978634,0.03,162.17,162.16,35.58254177]
[1752310978848,0.03,162.17,162.16,31.76]
[1752310979341,0.03,162.17,162.16,35.58254177]
[1752310980238,0.03,162.17,162.16,31.76]
[1752310980945,0.03,162.17,162.16,35.58254177]
[1752310982138,0.03,162.17,162.16,31.76]
[1752310982454,0.03,162.17,162.16,35.58254177]
[1752310984360,0.03,162.17,162.16,31.56]
[1752310985563,0.03,162.17,162.16,31.76]
[1752310986940,0.03,162.17,162.16,31.56]
[1752310989238,0.03,162.17,162.16,31.76]
[1752310989563,0.03,162.17,162.16,35.58254177]
[1752310990350,0.03,162.17,162.16,31.76]
[1752310992249,0.03,162.17,162.16,31.56]
[1752310994162,0.03,162.17,162.16,31.76]
[1752310994969,0.03,162.17,162.16,31.56]
[1752311000767,4.55254177,162.17,162.16,31.56]
[1752311003277,0.03,162.17,162.16,31.56]
[1752311006867,0.73,162.17,162.16,31.56]
[1752311007486,0.03,162.17,162.16,31.56]
[1752311011889,0.73,162.17,162.16,31.56]
[1752311012883,0.03,162.17,162.16,31.56]
[1752311013884,0.03,162.17,162.16,31.76]
[1752311014488,0.03,162.17,162.16,31.56]
[1752311018690,3.17932336,162.17,162.16,31.56]
[1752311020688,0.73,162.17,162.16,31.56]
[1752311020889,3.17932336,162.17,162.16,31.56]
[1752311021696,3.17932336,162.17,162.16,0.2]
[1752311022995,4.55910309,162.17,162.16,0.2]
[1752311023182,30.55910309,162.17,162.16,0.2]
[1752311025165,4.55910309,162.17,162.16,0.2]
[1752311029579,30.55910309,162.17,162.16,0.2]
[1752311029778,34.38820618,162.17,162.16,0.2]
[1752311029984,40.88030618,162.17,162.16,0.2]
[1752311033416,40.88030618,162.17,162.12,31.32]
[1752311033591,3.82910309,162.13,162.12,31.32]
[1752311033998,4.48910309,162.13,162.12,31.32]
[1752311040123,3.82910309,162.14,162.12,31.32]
[1752311040414,3.82910309,162.15,162.12,31.52]
[1752311040706,3.82910309,162.16,162.13,0.2]
[1752311040907,3.82910309,162.16,162.12,31.32]
[1752311040908,3.82910309,162.15,162.12,31.32]
[1752311041414,3.82910309,162.15,162.12,31.52]
[1752311044005,0.03,162.17,162.13,0.2]
[1752311044200,0.03,162.17,162.14,0.2]
[1752311044390,3.82910309,162.16,162.12,31.32]
[1752311044598,3.82910309,162.16,162.13,0.2]
[1752311045418,3.85910309,162.17,162.14,0.2]
[1752311045618,0.03,162.17,162.14,4.02910309]
[1752311045825,0.03,162.17,162.15,0.2]
[1752311046014,0.03,162.17,162.16,31.3]
[1752311046311,0.03,162.17,162.16,31.5]
[1752311046493,0.03,162.17,162.16,31.3]
[1752311047127,0.03,162.17,162.16,31.5]
[1752311047696,0.03,162.17,162.16,31.3]
[1752311048313,0.69,162.17,162.16,31.3]
[1752311049218,0.03,162.17,162.16,31.3]
[1752311050232,0.69,162.17,162.16,31.3]
[1752311050524,4.51910309,162.17,162.16,31.3]
[1752311057428,30.51910309,162.17,162.11,0.2]
[1752311057629,3.82910309,162.14,162.12,31.3]
[1752311057840,4.48910309,162.14,162.12,31.3]
[1752311058941,0.66,162.15,162.12,31.3]
[1752311059112,3.82910309,162.14,162.12,31.3]
[1752311059625,4.48910309,162.14,162.12,31.3]
[1752311060531,3.82910309,162.13,162.12,31.3]
[1752311062359,11.10320309,162.13,162.11,0.2]
[1752311062643,4.48910309,162.12,162.11,0.2]
[1752311065733,0.66,162.13,162.11,0.2]
[1752311065944,3.82910309,162.12,162.11,0.2]
[1752311066246,3.82910309,162.12,162.11,31.5]
[1752311067946,0.66,162.14,162.11,31.5]
[1752311068248,3.82910309,162.12,162.11,31.5]
[1752311072251,4.48910309,162.12,162.11,31.5]
[1752311077240,3.82910309,162.12,162.11,31.5]
[1752311078344,4.48910309,162.12,162.11,31.5]
[1752311078531,3.82910309,162.12,162.11,31.5]
[1752311079052,0.66,162.12,162.11,31.5]
[1752311079231,4.48910309,162.12,162.11,31.5]
[1752311088598,3.82910309,162.15,162.11,31.7]
[1752311088756,0.03,162.16,162.12,0.2]
[1752311088958,0.03,162.16,162.12,4.02910309]
[1752311089257,0.03,162.16,162.13,4.02910309]
[1752311089457,0.03,162.16,162.13,0.2]
[1752311089649,0.03,162.16,162.14,0.2]
[1752311089849,0.03,162.16,162.15,31.28]
[1752311090953,0.03,162.16,162.15,31.48]
[1752311091658,0.03,162.16,162.15,31.28]
[1752311093261,0.03,162.16,162.15,35.30910309]
[1752311094870,0.03,162.16,162.15,53.61278706]
[1752311102659,0.03,162.16,162.15,49.78368397]
[1752311102854,0.03,162.16,162.15,53.61278706]
[1752311106155,0.03,162.16,162.15,57.44189015]
[1752311107464,0.03,162.16,162.15,53.61278706]
[1752311108580,0.03,162.16,162.15,53.67278706]
[1752311110275,0.03,162.16,162.15,147.02860307]
[1752311110575,0.03,162.16,162.15,146.41189015]
[1752311114982,0.03,162.17,162.16,16.78468397]
[1752311115166,0.03,162.17,162.16,120.08109015]
[1752311115482,0.03,162.17,162.16,120.69776503]
[1752311116378,0.03,162.2,162.19,42.78468397]
[1752311116685,0.03,162.2,162.19,77.85378706]